fUST/lending_fUST_20240626
["ID","MTS","AMOUNT","RATE_DAILY","PERIOD"]
[330416698,1719360640662,-500.0,0.00016438,2]
[330416699,1719360640672,-500.0,0.00016438,2]
[330416700,1719360640682,-541.70945954,0.00016438,2]
[330416701,1719360640691,-500.0,0.00016438,2]
[330416702,1719360640701,-1467.66,0.00016438,2]
[330416703,1719360640710,-500.0,0.00016438,2]
[330416704,1719360640720,-500.0,0.00016438,2]
[330416705,1719360640729,-512.20271342,0.00016438,2]
[330416706,1719360640739,-409.65753112,0.00016438,2]
[330416707,1719360640748,-572.69,0.00016438,2]
[330416708,1719360640758,-500.0,0.00016438,2]
[330416709,1719360640767,-500.0,0.00016438,2]
[330416710,1719360640777,-500.0,0.00016438,2]
[330416711,1719360640786,-500.0,0.00016438,2]
[330416712,1719360640795,-561.24032157,0.00016438,2]
[330416713,1719360640804,-500.0,0.00016438,2]
[330416714,1719360640814,-500.0,0.00016438,2]
[330416715,1719360640823,-500.0,0.00016438,2]
[330416716,1719360640832,-500.0,0.00016438,2]
[330416717,1719360640842,-500.0,0.00016438,2]
[330416718,1719360640852,-11964.99,0.00016438,2]
[330416719,1719360640862,-500.0,0.00016438,2]
[330416720,1719360640871,-297.23291265,0.00016438,2]
[330416721,1719360640880,-1522.15,0.00016438,2]
[330416722,1719360640889,-500.0,0.00016438,2]
[330416723,1719360640898,-500.0,0.00016438,2]
[330416724,1719360640909,-500.0,0.00016438,2]
[330416725,1719360640918,-500.0,0.00016438,2]
[330416726,1719360640927,-697.52,0.00016438,2]
[330416727,1719360641057,-500.0,0.00016438,2]
[330416728,1719360641086,-1646.3,0.00016438,2]
[330416729,1719360641095,-500.0,0.00016438,2]
[330416730,1719360641104,-500.0,0.00016438,2]
[330416731,1719360641113,-500.0,0.00016438,2]
[330416732,1719360641122,-500.0,0.00016438,2]
[330416733,1719360641131,-500.0,0.00016438,2]
[330416734,1719360641140,-500.0,0.00016438,2]
[330416735,1719360641149,-500.0,0.00016438,2]
[330416736,1719360641161,-500.0,0.00016438,2]
[330416737,1719360641170,-500.0,0.00016438,2]
[330416738,1719360641179,-667.04,0.00016438,2]
[330416739,1719360641188,-581.9,0.00016438,2]
[330416740,1719360641197,-500.0,0.00016438,2]
[330416741,1719360641209,-4946.28,0.00016438,2]
[330416742,1719360641221,-500.0,0.00016438,2]
[330416743,1719360641231,-25235.29,0.00016438,2]
[330416744,1719360641241,-1045.29,0.00016438,2]
[330416745,1719360641251,-5464.7,0.00016438,2]
[330416746,1719360641261,-238.619125,0.00016438,2]
[330416747,1719360641270,-238.619125,0.00016438,2]
[330416748,1719360641279,-238.619125,0.00016438,2]
[330416749,1719360641288,-238.619125,0.00016438,2]
[330416750,1719360641300,-238.619125,0.00016438,2]
[330416751,1719360641311,-238.61913,0.00016438,2]
[330416752,1719360641320,-500.0,0.00016438,2]
[330416753,1719360641329,-500.0,0.00016438,2]
[330416754,1719360641339,-500.0,0.00016438,2]
[330416755,1719360641348,-2924.46,0.00016438,2]
[330416756,1719360641357,-500.0,0.00016438,2]
[330416757,1719360641366,-612.7,0.00016438,2]
[330416758,1719360641375,-781.47,0.00016438,2]
[330416759,1719360641384,-500.0,0.00016438,2]
[330416760,1719360641394,-500.0,0.00016438,2]
[330416761,1719360641405,-5503.91,0.00016438,2]
[330416762,1719360641414,-717.4,0.00016438,2]
[330416763,1719360641423,-520.98,0.00016438,2]
[330416764,1719360641433,-500.0,0.00016438,2]
[330416765,1719360641443,-500.0,0.00016438,2]
[330416766,1719360641452,-500.0,0.00016438,2]
[330416767,1719360641462,-678.2,0.00016438,2]
[330416768,1719360641471,-749.47,0.00016438,2]
[330416769,1719360641480,-500.0,0.00016438,2]
[330416770,1719360641490,-3650.73,0.00016438,2]
[330416771,1719360641499,-500.0,0.00016438,2]
[330416772,1719360641509,-519.47358587,0.00016438,2]
[330416773,1719360641518,-500.0,0.00016438,2]
[330416774,1719360641527,-500.0,0.00016438,2]
[330416775,1719360641536,-1275.85,0.00016438,2]
[330416776,1719360641546,-500.0,0.00016438,2]
[330416777,1719360641555,-500.0,0.00016438,2]
[330416778,1719360641565,-845.61,0.00016438,2]
[330416779,1719360641574,-500.0,0.00016438,2]
[330416780,1719360641584,-1147.87,0.00016438,2]
[330416781,1719360641593,-1806.26,0.00016438,2]
[330416782,1719360641602,-500.0,0.00016438,2]
[330416783,1719360641612,-1777.2,0.00016438,2]
[330416784,1719360641621,-500.0,0.00016438,2]
[330416785,1719360641630,-8726.31,0.00016438,2]
[330416786,1719360641639,-3676.07,0.00016438,2]
[330416787,1719360641649,-500.0,0.00016438,2]
[330416788,1719360641663,-604.51,0.00016438,2]
[330416789,1719360641672,-500.0,0.00016438,2]
[330416790,1719360641681,-700.68,0.00016438,2]
[330416791,1719360641690,-205.69006155,0.00016438,2]
[330416792,1719360641699,-1322.98,0.00016438,2]
[330416793,1719360641707,-500.0,0.00016438,2]
[330416794,1719360641716,-813.66,0.00016438,2]
[330416795,1719360641726,-954.69,0.00016438,2]
[330416796,1719360641735,-500.0,0.00016438,2]
[330416797,1719360641745,-151.0,0.00016438,2]
[330416798,1719360641755,-151.0,0.00016438,2]
[330416799,1719360641764,-500.0,0.00016438,2]
[330416800,1719360641774,-500.0,0.00016438,2]
[330416801,1719360641784,-500.0,0.00016438,2]
[330416802,1719360641794,-626.25,0.00016438,2]
[330416803,1719360641804,-500.0,0.00016438,2]
[330416804,1719360641813,-461.36,0.00016438,2]
[330416805,1719360641823,-1097.04,0.00016438,2]
[330416806,1719360641832,-500.0,0.00016438,2]
[330416807,1719360641840,-500.0,0.00016438,2]
[330416808,1719360641850,-500.0,0.00016438,2]
[330416809,1719360641860,-500.0,0.00016438,2]
[330416810,1719360641869,-500.0,0.00016438,2]
[330416811,1719360641878,-500.0,0.00016438,2]
[330416812,1719360641888,-1502.21,0.00016438,2]
[330416813,1719360641898,-306.39074947,0.00016438,2]
[330416814,1719360641911,-500.0,0.00016438,2]
[330416815,1719360641920,-500.0,0.00016438,2]
[330416816,1719360641929,-151.0,0.00016438,2]
[330416817,1719360641939,-207.90292,0.00016438,2]
[330416818,1719360641948,-500.0,0.00016438,2]
[330416819,1719360641957,-822.40253911,0.00016438,2]
[330416820,1719360642132,-152.50746089,0.00016438,2]
[330416821,1719360642141,-524.7508497,0.00016438,2]
[330416822,1719360642150,-500.0,0.00016438,2]
[330416823,1719360642161,-3688.38,0.00016438,2]
[330416824,1719360642170,-500.0,0.00016438,2]
[330416825,1719360642179,-500.0,0.00016438,2]
[330416826,1719360642189,-967.38,0.00016438,2]
[330416827,1719360642198,-250.0,0.00016438,2]
[330416828,1719360642213,-1426.05,0.00016438,2]
[330416829,1719360642222,-500.0,0.00016438,2]
[330416830,1719360642231,-500.0,0.00016438,2]
[330416831,1719360642241,-151.0,0.00016438,2]
[330416832,1719360642251,-500.0,0.00016438,2]
[330416833,1719360642260,-500.0,0.00016438,2]
[330416834,1719360642270,-940.96,0.00016438,2]
[330416835,1719360642280,-7967.99,0.00016438,2]
[330416836,1719360642289,-1125.23,0.00016438,2]
[330416837,1719360642299,-500.0,0.00016438,2]
[330416838,1719360642308,-500.0,0.00016438,2]
[330416839,1719360642318,-501.76,0.00016438,2]
[330416840,1719360642327,-500.0,0.00016438,2]
[330416841,1719360642335,-500.0,0.00016438,2]
[330416842,1719360642344,-4516.17,0.00016438,2]
[330416843,1719360642354,-500.0,0.00016438,2]
[330416844,1719360642363,-151.0,0.00016438,2]
[330416845,1719360642372,-151.0,0.00016438,2]
[330416846,1719360642382,-189.363992,0.00016438,2]
[330416847,1719360642392,-500.0,0.00016438,2]
[330416848,1719360642401,-500.0,0.00016438,2]
[330416849,1719360642413,-500.0,0.00016438,2]
[330416850,1719360642422,-500.0,0.00016438,2]
[330416851,1719360642431,-500.0,0.00016438,2]
[330416852,1719360642441,-2769.84,0.00016438,2]
[330416853,1719360642450,-151.0,0.00016438,2]
[330416854,1719360642460,-151.0,0.00016438,2]
[330416855,1719360642469,-151.0,0.00016438,2]
[330416856,1719360642478,-151.0,0.00016438,2]
[330416857,1719360642487,-151.0,0.00016438,2]
[330416858,1719360642496,-151.0,0.00016438,2]
[330416859,1719360642505,-151.0,0.00016438,2]
[330416860,1719360642514,-151.0,0.00016438,2]
[330416861,1719360642524,-151.0,0.00016438,2]
[330416862,1719360642533,-151.0,0.00016438,2]
[330416863,1719360642542,-151.0,0.00016438,2]
[330416864,1719360642552,-151.0,0.00016438,2]
[330416865,1719360642562,-218.57612,0.00016438,2]
[330416866,1719360642571,-620.00699348,0.00016443,2]
[330416867,1719360642580,-276.11669524,0.000165,2]
[330416868,1719360642589,-151.075,0.00016554,2]
[330416869,1719360642598,-299.323,0.00016554,2]
[330416870,1719360642607,-212.639,0.00016554,2]
[330416871,1719360642616,-228.87,0.00016554,2]
[330416872,1719360642625,-623.0,0.00016621,2]
[330416873,1719360642635,-301.66699658,0.00016711,2]
[330416874,1719360642644,-22635.11870849,0.00016712,2]
[330416875,1719360642653,-500.0,0.00016712,2]
[330416876,1719360642664,-500.0,0.00016712,2]
[330416877,1719360642673,-1075.21,0.00016712,2]
[330416878,1719360642682,-768.89,0.00016712,2]
[330416879,1719360642691,-500.0,0.00016712,2]
[330416880,1719360642700,-783.41,0.00016712,2]
[330416881,1719360642709,-17210.14,0.00016712,2]
[330416882,1719360642718,-500.0,0.00016712,2]
[330416883,1719360642727,-500.0,0.00016712,2]
[330416884,1719360642736,-500.0,0.00016712,2]
[330416885,1719360642745,-500.0,0.00016712,2]
[330416886,1719360642755,-763.43,0.00016712,2]
[330416887,1719360642763,-500.0,0.00016712,2]
[330416888,1719360642772,-500.0,0.00016712,2]
[330416889,1719360642782,-500.0,0.00016712,2]
[330416890,1719360642791,-500.0,0.00016712,2]
[330416891,1719360642800,-500.0,0.00016712,2]
[330416892,1719360642810,-500.0,0.00016712,2]
[330416893,1719360642819,-500.0,0.00016712,2]
[330416894,1719360642828,-500.0,0.00016712,2]
[330416895,1719360642838,-500.0,0.00016712,2]
[330416896,1719360642847,-500.0,0.00016712,2]
[330416897,1719360642856,-526.05,0.00016712,2]
[330416898,1719360642865,-500.0,0.00016712,2]
[330416899,1719360642874,-500.0,0.00016712,2]
[330416900,1719360642883,-500.0,0.00016712,2]
[330416901,1719360642892,-500.0,0.00016712,2]
[330416902,1719360642901,-500.0,0.00016712,2]
[330416903,1719360642911,-500.0,0.00016712,2]
[330416904,1719360642921,-500.0,0.00016712,2]
[330416905,1719360642930,-1020.04,0.00016712,2]
[330416906,1719360642939,-991.62,0.00016712,2]
[330416907,1719360642948,-500.0,0.00016712,2]
[330416908,1719360642957,-500.0,0.00016712,2]
[330416909,1719360642966,-500.0,0.00016712,2]
[330416910,1719360642975,-500.0,0.00016712,2]
[330416911,1719360642984,-500.0,0.00016712,2]
[330416912,1719360642994,-500.0,0.00016712,2]
[330416913,1719360643003,-535.41750667,0.00016712,2]
[330416914,1719360643013,-500.0,0.00016712,2]
[330416915,1719360643023,-500.0,0.00016712,2]
[330416916,1719360643032,-500.0,0.00016712,2]
[330416917,1719360643041,-500.0,0.00016712,2]
[330416918,1719360643052,-570.08,0.00016712,2]
[330416919,1719360643061,-500.0,0.00016712,2]
[330416921,1719360643070,-500.0,0.00016712,2]
[330416922,1719360643080,-500.0,0.00016712,2]
[330416923,1719360643089,-935.03,0.00016712,2]
[330416924,1719360643099,-1317.05,0.00016712,2]
[330416925,1719360643108,-500.0,0.00016712,2]
[330416926,1719360643118,-500.0,0.00016712,2]
[330416927,1719360643127,-500.0,0.00016712,2]
[330416928,1719360643135,-500.0,0.00016712,2]
[330416930,1719360643145,-500.0,0.00016712,2]
[330416932,1719360643154,-500.0,0.00016712,2]
[330416933,1719360643164,-500.0,0.00016712,2]
[330416935,1719360643174,-500.0,0.00016712,2]
[330416937,1719360643183,-1178.66,0.00016712,2]
[330416939,1719360643192,-517.19,0.00016712,2]
[330416941,1719360643201,-500.0,0.00016712,2]
[330416943,1719360643214,-500.0,0.00016712,2]
[330416946,1719360643225,-500.0,0.00016712,2]
[330416947,1719360643234,-500.0,0.00016712,2]
[330416949,1719360643243,-901.62,0.00016712,2]
[330416950,1719360643253,-893.0,0.00016712,2]
[330416952,1719360643261,-500.0,0.00016712,2]
[330416953,1719360643270,-500.0,0.00016712,2]
[330416955,1719360643279,-500.0,0.00016712,2]
[330416956,1719360643289,-500.0,0.00016712,2]
[330416957,1719360643299,-500.0,0.00016712,2]
[330416958,1719360643308,-500.0,0.00016712,2]
[330416960,1719360643317,-500.0,0.00016712,2]
[330416961,1719360643326,-500.0,0.00016712,2]
[330416962,1719360643336,-500.0,0.00016712,2]
[330416963,1719360643346,-500.0,0.00016712,2]
[330416964,1719360643356,-500.0,0.00016712,2]
[330416965,1719360643366,-500.0,0.00016712,2]
[330416967,1719360643375,-500.0,0.00016712,2]
[330416968,1719360643386,-2664.33,0.00016712,2]
[330416970,1719360643395,-500.0,0.00016712,2]
[330416971,1719360643404,-500.0,0.00016712,2]
[330416972,1719360643419,-1102.71,0.00016712,2]
[330416973,1719360643429,-4229.19,0.00016712,2]
[330416974,1719360643440,-500.0,0.00016712,2]
[330416975,1719360643449,-500.0,0.00016712,2]
[330416976,1719360643459,-557.25,0.00016712,2]
[330416977,1719360643469,-500.0,0.00016712,2]
[330416978,1719360643479,-500.0,0.00016712,2]
[330416979,1719360643489,-500.0,0.00016712,2]
[330416980,1719360643498,-500.0,0.00016712,2]
[330416982,1719360643508,-500.0,0.00016712,2]
[330416984,1719360643518,-1467.66,0.00016712,2]
[330416985,1719360643528,-500.0,0.00016712,2]
[330416987,1719360643538,-572.69,0.00016712,2]
[330416989,1719360643548,-500.0,0.00016712,2]
[330416991,1719360643558,-500.0,0.00016712,2]
[330416993,1719360643568,-461.87037365,0.00016712,2]
[330416994,1719360643578,-374.110116,0.00016712,2]
[330416995,1719360643588,-500.0,0.00016712,2]
[330416997,1719360643724,-500.0,0.00016712,2]
[330416998,1719360643734,-500.0,0.00016712,2]
[330416999,1719360643744,-11964.99,0.00016712,2]
[330417000,1719360643754,-500.0,0.00016712,2]
[330417001,1719360643763,-500.0,0.00016712,2]
[330417002,1719360643773,-1522.15,0.00016712,2]
[330417003,1719360643783,-500.0,0.00016712,2]
[330417004,1719360643792,-500.0,0.00016712,2]
[330417005,1719360643803,-697.52,0.00016712,2]
[330417006,1719360643812,-500.0,0.00016712,2]
[330417007,1719360643822,-1646.3,0.00016712,2]
[330417008,1719360643832,-500.0,0.00016712,2]
[330417009,1719360643841,-359.0400759,0.00016712,2]
[330417010,1719360643851,-500.0,0.00016712,2]
[330417011,1719360643861,-500.0,0.00016712,2]
[330417012,1719360643870,-500.0,0.00016712,2]
[330417013,1719360643881,-500.0,0.00016712,2]
[330417014,1719360643890,-500.0,0.00016712,2]
[330417015,1719360643899,-500.0,0.00016712,2]
[330417016,1719360643913,-500.0,0.00016712,2]
[330417017,1719360643923,-667.04,0.00016712,2]
[330417018,1719360643932,-581.9,0.00016712,2]
[330417019,1719360643941,-4946.28,0.00016712,2]
[330417020,1719360643951,-500.0,0.00016712,2]
[330417021,1719360643964,-25235.29,0.00016712,2]
[330417022,1719360643974,-1045.29,0.00016712,2]
[330417023,1719360643983,-5464.7,0.00016712,2]
[330417024,1719360643993,-500.0,0.00016712,2]
[330417025,1719360644003,-500.0,0.00016712,2]
[330417026,1719360644012,-2924.46,0.00016712,2]
[330417027,1719360644022,-500.0,0.00016712,2]
[330417028,1719360644032,-612.7,0.00016712,2]
[330417029,1719360644042,-781.47,0.00016712,2]
[330417030,1719360644052,-500.0,0.00016712,2]
[330417031,1719360644062,-500.0,0.00016712,2]
[330417032,1719360644072,-5503.91,0.00016712,2]
[330417033,1719360644082,-717.4,0.00016712,2]
[330417034,1719360644091,-520.98,0.00016712,2]
[330417035,1719360644101,-500.0,0.00016712,2]
[330417036,1719360644111,-500.0,0.00016712,2]
[330417037,1719360644121,-500.0,0.00016712,2]
[330417038,1719360644132,-678.2,0.00016712,2]
[330417039,1719360644142,-749.47,0.00016712,2]
[330417040,1719360644153,-500.0,0.00016712,2]
[330417041,1719360644168,-3650.73,0.00016712,2]
[330417042,1719360644176,-601.68813483,0.00016712,2]
[330417043,1719360644186,-500.0,0.00016712,2]
[330417044,1719360644195,-1275.85,0.00016712,2]
[330417045,1719360644209,-500.0,0.00016712,2]
[330417046,1719360644218,-845.61,0.00016712,2]
[330417047,1719360644228,-500.0,0.00016712,2]
[330417048,1719360644237,-500.0,0.00016712,2]
[330417049,1719360644248,-1147.87,0.00016712,2]
[330417050,1719360644258,-1806.26,0.00016712,2]
[330417051,1719360644267,-1777.2,0.00016712,2]
[330417052,1719360644277,-500.0,0.00016712,2]
[330417053,1719360644287,-8726.31,0.00016712,2]
[330417054,1719360644296,-3676.07,0.00016712,2]
[330417055,1719360644305,-491.73533946,0.00016712,2]
[330417056,1719360644314,-604.51,0.00016712,2]
[330417057,1719360644323,-700.68,0.00016712,2]
[330417058,1719360644331,-1322.98,0.00016712,2]
[330417059,1719360644340,-813.66,0.00016712,2]
[330417060,1719360644349,-954.69,0.00016712,2]
[330417061,1719360644357,-500.0,0.00016712,2]
[330417062,1719360644367,-500.0,0.00016712,2]
[330417063,1719360644376,-500.0,0.00016712,2]
[330417064,1719360644385,-626.25,0.00016712,2]
[330417065,1719360644394,-1006.39363708,0.00016712,2]
[330417081,1719360646858,-238.39255013,0.00014361,2]
[330417082,1719360646868,-817.36545723,0.00015599,2]
[330417083,1719360646877,-154.83742071,0.00016299,2]
[330417084,1719360646886,-189.95308015,0.0001642,2]
[330417085,1719360646919,-183.92854275,0.0001642,2]
[330417086,1719360646928,-90.64636292,0.00016712,2]
[330417087,1719360646937,-500.0,0.00016712,2]
[330417088,1719360646948,-500.0,0.00016712,2]
[330417089,1719360646958,-500.0,0.00016712,2]
[330417090,1719360646967,-945.04509433,0.00016712,2]
[330417109,1719361574442,223.576236,0.00013867,2]
[330417111,1719361641149,817.36545723,0.00013999,2]
[330417203,1719361837777,-1102.77481401,0.00014177,2]
[330417205,1719361837787,-3000.0,0.00014211,2]
[330417207,1719361837797,-11114.33010017,0.00014237,2]
[330417209,1719361837806,-300.0,0.00014277,2]
[330417211,1719361837816,-300.0,0.00014277,2]
[330417213,1719361837825,-1956.60410246,0.00014758,2]
[330417215,1719361837835,-24900.0,0.00014829,2]
[330417217,1719361837844,-156.83966735,0.00015242,2]
[330417219,1719361837854,-1223.94680364,0.00015342,2]
[330417220,1719361837863,-154.83742071,0.00015442,2]
[330417222,1719361837875,-156.83966735,0.00015516,2]
[330417224,1719361837884,-156.83966735,0.0001579,2]
[330417226,1719361837894,-401.69132048,0.00015928,2]
[330417228,1719361837904,-176.03735811,0.00015992,2]
[330417231,1719361837914,-156.83966735,0.00016064,2]
[330417232,1719361837924,-306.3498024,0.00016164,2]
[330417235,1719361837934,-153.0,0.00016164,2]
[330417236,1719361837943,-306.5410938,0.00016164,2]
[330417238,1719361837952,-153.0,0.00016164,2]
[330417240,1719361837962,-817.36545723,0.00016437,2]
[330417241,1719361837972,-500.0,0.00016438,2]
[330417242,1719361837982,-729.42,0.00016438,2]
[330417243,1719361837991,-504.9109216,0.00016438,2]
[330417244,1719361838001,-500.0,0.00016438,2]
[330417245,1719361838011,-500.0,0.00016438,2]
[330417246,1719361838021,-500.0,0.00016438,2]
[330417247,1719361838030,-500.0,0.00016438,2]
[330417248,1719361838040,-500.0,0.00016438,2]
[330417249,1719361838050,-500.0,0.00016438,2]
[330417250,1719361838062,-1406.51,0.00016438,2]
[330417251,1719361838072,-500.0,0.00016438,2]
[330417252,1719361838082,-500.0,0.00016438,2]
[330417253,1719361838092,-500.0,0.00016438,2]
[330417254,1719361838103,-500.0,0.00016438,2]
[330417255,1719361838113,-500.0,0.00016438,2]
[330417256,1719361838123,-500.0,0.00016438,2]
[330417257,1719361838134,-500.0,0.00016438,2]
[330417258,1719361838145,-500.0,0.00016438,2]
[330417259,1719361838155,-668.46,0.00016438,2]
[330417260,1719361838165,-500.0,0.00016438,2]
[330417261,1719361838175,-500.0,0.00016438,2]
[330417262,1719361838185,-500.0,0.00016438,2]
[330417263,1719361838195,-500.0,0.00016438,2]
[330417265,1719361838205,-500.0,0.00016438,2]
[330417266,1719361838215,-500.0,0.00016438,2]
[330417267,1719361838225,-500.0,0.00016438,2]
[330417268,1719361838234,-500.0,0.00016438,2]
[330417269,1719361838244,-500.0,0.00016438,2]
[330417271,1719361838254,-500.0,0.00016438,2]
[330417273,1719361838264,-500.0,0.00016438,2]
[330417275,1719361838273,-500.0,0.00016438,2]
[330417295,1719361838463,-649.94,0.00016438,2]
[330417297,1719361838474,-534.03,0.00016438,2]
[330417299,1719361838485,-500.0,0.00016438,2]
[330417301,1719361838495,-500.0,0.00016438,2]
[330417303,1719361838505,-512.20271342,0.00016438,2]
[330417305,1719361838515,-597.10015087,0.00016438,2]
[330417307,1719361838525,-500.0,0.00016438,2]
[330417309,1719361838536,-500.0,0.00016438,2]
[330417311,1719361838545,-500.0,0.00016438,2]
[330417313,1719361838555,-500.0,0.00016438,2]
[330417315,1719361838565,-409.65753112,0.00016438,2]
[330417317,1719361838578,-561.24032157,0.00016438,2]
[330417319,1719361838589,-500.0,0.00016438,2]
[330417321,1719361838599,-500.0,0.00016438,2]
[330417323,1719361838610,-500.0,0.00016438,2]
[330417325,1719361838623,-500.0,0.00016438,2]
[330417327,1719361838634,-500.0,0.00016438,2]
[330417328,1719361838644,-500.0,0.00016438,2]
[330417330,1719361838655,-500.0,0.00016438,2]
[330417331,1719361838667,-500.0,0.00016438,2]
[330417332,1719361838678,-297.23291265,0.00016438,2]
[330417333,1719361838687,-500.0,0.00016438,2]
[330417335,1719361838698,-473.87871896,0.00016438,2]
[330417336,1719361838708,-500.0,0.00016438,2]
[330417337,1719361838717,-500.0,0.00016438,2]
[330417338,1719361838728,-500.0,0.00016438,2]
[330417339,1719361838737,-500.0,0.00016438,2]
[330417341,1719361838747,-500.0,0.00016438,2]
[330417342,1719361838757,-500.0,0.00016438,2]
[330417344,1719361838767,-546.33,0.00016438,2]
[330417345,1719361838777,-500.0,0.00016438,2]
[330417346,1719361838792,-500.0,0.00016438,2]
[330417347,1719361838802,-500.0,0.00016438,2]
[330417348,1719361838811,-500.0,0.00016438,2]
[330417349,1719361838821,-896.07,0.00016438,2]
[330417350,1719361838831,-500.0,0.00016438,2]
[330417351,1719361838841,-1001.73,0.00016438,2]
[330417352,1719361838852,-500.0,0.00016438,2]
[330417353,1719361838862,-500.0,0.00016438,2]
[330417354,1719361838873,-500.0,0.00016438,2]
[330417355,1719361838883,-587.17,0.00016438,2]
[330417356,1719361838893,-500.0,0.00016438,2]
[330417357,1719361838903,-1262.17,0.00016438,2]
[330417358,1719361838913,-500.0,0.00016438,2]
[330417359,1719361838923,-500.0,0.00016438,2]
[330417360,1719361838933,-500.0,0.00016438,2]
[330417361,1719361838950,-1129.54,0.00016438,2]
[330417362,1719361838964,-500.0,0.00016438,2]
[330417363,1719361838975,-718.24,0.00016438,2]
[330417364,1719361838985,-500.0,0.00016438,2]
[330417365,1719361838996,-500.0,0.00016438,2]
[330417366,1719361839006,-500.0,0.00016438,2]
[330417367,1719361839017,-1462.83,0.00016438,2]
[330417368,1719361839028,-500.0,0.00016438,2]
[330417369,1719361839039,-855.79,0.00016438,2]
[330417370,1719361839049,-1081.67,0.00016438,2]
[330417371,1719361839061,-500.0,0.00016438,2]
[330417372,1719361839072,-500.0,0.00016438,2]
[330417373,1719361839083,-500.0,0.00016438,2]
[330417374,1719361839094,-500.0,0.00016438,2]
[330417375,1719361839104,-515.6730036,0.00016438,2]
[330417376,1719361839115,-500.0,0.00016438,2]
[330417377,1719361839128,-500.0,0.00016438,2]
[330417378,1719361839139,-500.0,0.00016438,2]
[330417379,1719361839150,-500.0,0.00016438,2]
[330417380,1719361839162,-772.23,0.00016438,2]
[330417381,1719361839173,-500.0,0.00016438,2]
[330417382,1719361839184,-500.0,0.00016438,2]
[330417383,1719361839195,-864.06,0.00016438,2]
[330417384,1719361839206,-500.0,0.00016438,2]
[330417385,1719361839216,-500.0,0.00016438,2]
[330417386,1719361839228,-500.0,0.00016438,2]
[330417387,1719361839239,-500.0,0.00016438,2]
[330417388,1719361839250,-2553.32,0.00016438,2]
[330417389,1719361839261,-500.0,0.00016438,2]
[330417390,1719361839273,-306.39074947,0.00016438,2]
[330417391,1719361839284,-1056.76,0.00016438,2]
[330417392,1719361839295,-500.0,0.00016438,2]
[330417393,1719361839305,-500.0,0.00016438,2]
[330417394,1719361839315,-500.0,0.00016438,2]
[330417395,1719361839326,-500.0,0.00016438,2]
[330417396,1719361839338,-250.0,0.00016438,2]
[330417397,1719361839348,-500.0,0.00016438,2]
[330417398,1719361839360,-500.0,0.00016438,2]
[330417399,1719361839371,-500.0,0.00016438,2]
[330417400,1719361839385,-500.0,0.00016438,2]
[330417401,1719361839396,-500.0,0.00016438,2]
[330417402,1719361839407,-500.0,0.00016438,2]
[330417403,1719361839417,-500.0,0.00016438,2]
[330417404,1719361839428,-370.93717894,0.00016438,2]
[330417405,1719361839438,-500.0,0.00016438,2]
[330417406,1719361839449,-500.0,0.00016438,2]